[Event "4th Tata Steel India Rapid Women 2022"]
[Site "Kolkota"]
[Date "2022.11.29"]
[Round "3.5"]
[White "Ushenina, Anna"]
[Black "Harika, Dronavalli"]
[Result "1/2-1/2"]
[ECO "D02"]
[WhiteElo "2454"]
[BlackElo "2507"]
[Annotator "TA"]
[PlyCount "93"]
[EventDate "2022.11.29"]
[EventType "tourn"]
[EventCountry "IND"]
[SourceTitle "playchess.com"]
[Source "ChessBase"]
[SourceQuality "1"]
[TimeControl "900+10"]

{[%evp 18,93,64,67,54,43,65,64,134,139,132,129,121,112,113,125,142,145,124,88,89,86,87,76,79,79,81,81,86,85,87,89,85,70,72,78,87,72,72,78,77,77,89,79,78,85,87,87,81,79,87,70,80,54,54,54,66,54,54,54,62,47,47,47,47,47,47,47,47,47,47,41,41,41,41,41,47,47]} 1. Nf3 {[%emt 0:00:03]} d5 {[%emt 0:00:05]} 2. g3 {[%emt 0:00:08]} Nf6 {[%emt 0:00:54]} 3. Bg2 {[%emt 0:00:03]} c5 {[%emt 0:00:06]} 4. O-O {[%emt 0:00:24]} Nc6 {[%emt 0:00:02]} 5. d4 {[%emt 0:00:16]} cxd4 {[%emt 0:00:02]} 6. Nxd4 {[%emt 0:00:08]} e5 {[%emt 0:00:03]} 7. Nxc6 {[%emt 0:00:32]} bxc6 {[%emt 0:00:01]} 8. c4 {[%emt 0:00:05]} Be6 {[%emt 0:00:35]} 9. Nc3 {[%emt 0:04:56]} Be7 {[%emt 0:03:13]} 10. Bg5 {[%emt 0:01:45]} e4 {[%emt 0:00:22] D02: 1 d4 d5 2 Nf3 sidelines, including 2...Nf6 3 g3 and 2...Nf6 3 Bf4.} 11. Qa4 {[%emt 0:02:13]} O-O {[%emt 0:01:55]} 12. Rad1 {[%emt 0:03:41][%cal Ba1d1,Bd1d5,Bd5a5][%mdl 32]} (12. Qxc6 Rc8 13. Qb7 Rxc4 $11) 12... Qb6 {[%emt 0:01:58]} ({Better is} 12... Qe8 $14) 13. cxd5 {[%emt 0:00:02]} cxd5 {[%emt 0:00:02]} 14. Bxf6 {[%emt 0:00:33]} Bxf6 {[%emt 0:00:01]} 15. Nxd5 {[%emt 0:00:01]} Bxd5 {[%emt 0:00:02]} 16. Rxd5 {[%emt 0:00:02]} Qxb2 {[%emt 0:00:19]} 17. e3 {[%emt 0:01:06]} (17. Qxe4 $6 Rae8 18. Qf4 Rxe2 $11) ({Don't play} 17. Bxe4 Qxe2 18. Bd3 Qe8 $16) 17... Rab8 {[%emt 0:01:41]} 18. Bxe4 {[%emt 0:00:59] aiming for Rb1.} Rb4 {[%emt 0:01:27]} 19. Qc2 {[%emt 0:00:02] [#]} (19. Qxa7 $2 {perishes.} Rxe4 20. Ra5 Rc4 $19) 19... g6 $146 {[%emt 0:00:10]} ({Predecessor:} 19... Qxc2 20. Bxc2 Rc8 21. Bb3 Rc7 22. Rfd1 Kf8 23. Kg2 g6 24. f4 h5 25. Kf3 Be7 {1-0 (56) Bocharov,D (2516)-Skvortsov,A (2166) Sochi 2022}) 20. Ra5 {[%emt 0:00:12]} Qxc2 {[%emt 0:01:36]} 21. Bxc2 {[%emt 0:00:02]} Rc8 {[%emt 0:00:01]} 22. Bb3 {[%emt 0:00:07]} Rc7 {[%emt 0:00:05]} 23. Rd1 {[%emt 0:00:05]} Kg7 {[%emt 0:00:01]} 24. Kg2 {[%emt 0:00:14]} h5 {[%emt 0:00:09]} 25. h4 {[%emt 0:00:01]} Rb6 {[%emt 0:00:14]} 26. Rad5 {[%emt 0:00:14]} Rbb7 {[%emt 0:00:25]} 27. e4 {[%emt 0:00:18]} Re7 {[%emt 0:00:09]} 28. f3 {[%emt 0:00:04]} Rbc7 {[%emt 0:00:02]} 29. R1d2 {[%emt 0:00:02]} a5 {[%emt 0:00:24]} 30. Re2 {[%emt 0:00:06]} ({Of course not} 30. Rxa5 $6 Bc3 31. Rad5 Bxd2 32. Rxd2 Red7 33. Rxd7 Rxd7 $11) 30... Bc3 {[%emt 0:00:21]} 31. Rc2 {[%emt 0:00:18]} Bb4 {[%emt 0:00:17]} 32. Rxc7 {[%emt 0:00:05]} Rxc7 $16 {[%emt 0:00:01][%mdl 4096] Endgame KRB-KRB} 33. e5 {[%emt 0:00:12]} Ra7 {[%emt 0:00:03]} 34. Rb5 {[%emt 0:00:23]} Bc3 {[%emt 0:00:23]} 35. a4 {[%emt 0:00:23]} Re7 {[%emt 0:00:27] White is slightly better.} 36. f4 {[%emt 0:00:03]} Bb4 {[%emt 0:00:02]} 37. Kf3 {[%emt 0:00:12] White is more active.} Rc7 {[%emt 0:00:00] [#] Hoping for ...Rc3+.} 38. Bd5 {[%emt 0:00:16]} Be1 {[%emt 0:00:36]} 39. Rb7 {[%emt 0:00:40]} Rxb7 {[%emt 0:00:04]} 40. Bxb7 $14 {[%emt 0:00:01] KB-KB} Bc3 {[%emt 0:01:36]} 41. Bd5 {[%emt 0:00:34]} Kf8 {[%emt 0:00:21]} 42. Ke2 {[%emt 0:00:16]} Ke7 {[%emt 0:00:06]} 43. Bf3 {[%emt 0:00:10]} Bd4 {[%emt 0:00:08]} 44. g4 {[%emt 0:00:04]} hxg4 {[%emt 0:00:01]} 45. Bxg4 {[%emt 0:00:01]} f6 {[%emt 0:00:13]} 46. exf6+ Kxf6 {[%emt 0:00:02]} 47. Kf3 {[%emt 0:00:10] Weighted Error Value: White=0.05 (flawless) /Black=0.05 (flawless)} 1/2-1/2

[Event "4th Tata Steel India Rapid Women 2022"]
[Site "Kolkota"]
[Date "2022.11.30"]
[Round "4.1"]
[White "Dzagnidze, Nana"]
[Black "Ushenina, Anna"]
[Result "1/2-1/2"]
[ECO "A13"]
[WhiteElo "2517"]
[BlackElo "2454"]
[Annotator "TA"]
[PlyCount "64"]
[EventDate "2022.11.29"]
[EventType "tourn"]
[EventCountry "IND"]
[SourceTitle "playchess.com"]
[Source "ChessBase"]
[SourceQuality "1"]
[TimeControl "900+10"]

{[%evp 14,64,0,0,0,-4,5,6,-6,-26,-12,-15,0,-32,-23,-24,-16,-9,-14,-25,-22,-35,-7,-4,0,-25,-16,-21,-19,-24,-23,-24,-12,-27,-5,0,19,22,27,8,18,0,0,0,0,0,0,0,0,0,0,0,0]} 1. c4 {[%emt 0:00:04] ChessBase II} e6 {[%emt 0:00:07]} 2. Nf3 {[%emt 0:00:06]} d5 {[%emt 0:00:09]} 3. e3 {[%emt 0:00:09]} Nf6 {[%emt 0:00:08]} 4. b3 {[%emt 0:00:03]} c5 {[%emt 0:01:57]} 5. Bb2 {[%emt 0:00:05]} Nc6 {[%emt 0:00:06]} 6. cxd5 {[%emt 0:00:05]} exd5 {[%emt 0:00:03]} 7. Bb5 {[%emt 0:00:23]} Bd6 {[%emt 0:00:36]} 8. O-O {[%emt 0:00:03]} O-O {[%emt 0:00:19] A13: English Opening: 1...e6.} 9. d4 {[%emt 0:00:05]} cxd4 {[%emt 0:00:15]} 10. Nxd4 {[%emt 0:00:08]} Bc7 {[%emt 0:02:43]} 11. Bxc6 {[%emt 0:06:30]} bxc6 {[%emt 0:03:48] [#]} ({Resist} 11... Qd6 12. g3 bxc6 13. Qc2 $14) 12. Nd2 $146 {[%emt 0:00:16]} ({Predecessor:} 12. Qc2 c5 13. Nf3 Bd6 14. Nbd2 Bg4 15. h3 Bh5 16. Nh4 Nd7 17. Nf5 Bg6 18. Nf3 {½-½ (32) Malakhov,V (2691)-Bluebaum,M (2633) Brest 2018 EXT 2019 [ChessBase II]}) 12... c5 {[%emt 0:01:36]} (12... Qd6 {seems wilder.} 13. N2f3 Bd7 14. Rc1 Rac8) 13. N4f3 {[%emt 0:00:08]} Ba6 {[%emt 0:00:34] This pair of bishops is nice.} 14. Re1 {[%emt 0:00:03]} Re8 {[%emt 0:00:09]} 15. Rc1 {[%emt 0:03:16]} Rc8 {[%emt 0:00:37]} 16. Bxf6 {[%emt 0:02:25]} Qxf6 {[%emt 0:00:08]} 17. e4 {[%emt 0:00:01]} Red8 {[%emt 0:01:39]} 18. Qc2 {[%emt 0:01:24]} Bf4 {[%emt 0:00:38]} 19. Rcd1 {[%emt 0:00:31]} Bb7 {[%emt 0:01:05]} (19... d4 {keeps more tension.} 20. e5 d3 21. Qc3 Qg6) 20. exd5 {[%emt 0:02:11]} Bxd5 {[%emt 0:00:53]} 21. Re2 {[%emt 0:00:03]} h6 {[%emt 0:00:19]} 22. Rde1 {[%emt 0:00:07]} Qc6 {[%emt 0:00:11]} 23. Qf5 {[%emt 0:00:26]} Bb8 {[%emt 0:00:42]} 24. Nc4 {[%emt 0:00:12]} Qg6 {[%emt 0:00:12]} 25. Qxg6 {[%emt 0:00:13]} fxg6 {[%emt 0:00:01]} 26. Nfe5 {[%emt 0:00:08]} Kh7 {[%emt 0:00:10] The position is equal.} 27. f3 {[%emt 0:00:07]} Bxe5 {[%emt 0:00:12]} 28. Nxe5 {[%emt 0:00:07]} c4 {[%emt 0:00:01]} 29. bxc4 {[%emt 0:00:08]} Bxc4 {[%emt 0:00:01]} 30. Nxc4 {[%emt 0:00:06]} Rxc4 {[%emt 0:00:01]} 31. Rb2 {[%emt 0:00:26]} Rd7 {[%emt 0:00:16]} 32. Kf2 {[%emt 0:00:07]} Ra4 {[%emt 0:00:32] An interesting draw.   Weighted Error Value: White=0.07 (flawless) /Black=0.07 (flawless)} 1/2-1/2

[Event "4th Tata Steel India Rapid Women 2022"]
[Site "Kolkota"]
[Date "2022.11.30"]
[Round "4.2"]
[White "Vantika Agrawal"]
[Black "Kiolbasa, Oliwia"]
[Result "0-1"]
[ECO "E05"]
[WhiteElo "2362"]
[BlackElo "2406"]
[Annotator "TA"]
[PlyCount "67"]
[EventDate "2022.11.29"]
[EventType "tourn"]
[EventCountry "IND"]
[SourceTitle "playchess.com"]
[Source "ChessBase"]
[SourceQuality "1"]
[TimeControl "900+10"]

{[%evp 13,67,0,0,10,0,0,37,30,12,21,41,39,41,18,14,0,0,0,0,0,0,0,0,0,0,0,0,0,0,0,14,10,16,0,0,0,0,0,146,149,133,146,265,288,241,185,170,150,141,144,144,144,140,137,129,130]} 1. d4 {[%emt 0:00:02]} d5 {[%emt 0:00:02]} 2. c4 {[%emt 0:00:03]} e6 {[%emt 0:00:03]} 3. Nf3 {[%emt 0:00:03]} Nf6 {[%emt 0:00:07]} 4. g3 {[%emt 0:00:03]} Be7 {[%emt 0:00:10]} 5. Bg2 {[%emt 0:00:03]} O-O {[%emt 0:00:07]} 6. O-O {[%emt 0:00:05]} dxc4 {[%emt 0:00:07]} 7. Qc2 {[%emt 0:00:03]} b5 {[%emt 0:00:22]} 8. a4 {[%emt 0:00:05] E05: Open Catalan: 5 Nf3 Be7.} b4 {[%emt 0:00:02]} 9. Nfd2 {[%emt 0:00:32]} Nd5 {[%emt 0:00:13]} 10. Nxc4 {[%emt 0:00:08] White is slightly better.} c5 {[%emt 0:00:17]} 11. dxc5 {[%emt 0:00:14]} Bxc5 {[%emt 0:00:12]} 12. e4 {[%emt 0:02:04]} Nb6 {[%emt 0:00:17]} 13. Rd1 {[%emt 0:01:36]} (13. Ncd2 $5 {[%cal Rc2c5]} Qc7 14. Nb3 $14) 13... N8d7 {[%emt 0:01:15][%cal Bb8d7,Bd7c5,Bc5e4][%mdl 32]} 14. Be3 {[%emt 0:03:35] [#] Bxc5 is the strong threat.} Qe7 {[%emt 0:06:39] [#] aiming for ...Nxc4.} 15. Nxb6 $146 {[%emt 0:02:14]} ({Predecessor:} 15. Nbd2 Ba6 16. Nxb6 axb6 17. Bxc5 Nxc5 18. Nc4 Qc7 19. Nd6 e5 20. f4 Rad8 21. fxe5 {½-½ (73) Andreikin,D (2724)-Hakobyan,A (2601) Chess.com INT 2022}) 15... axb6 {[%emt 0:00:45]} 16. Bxc5 {[%emt 0:02:02]} Nxc5 {[%emt 0:00:21]} 17. e5 {[%emt 0:01:01]} Bb7 {[%emt 0:03:09]} 18. Bxb7 {[%emt 0:00:26]} Qxb7 {[%emt 0:00:04]} 19. Nd2 {[%emt 0:00:05][%cal Bb1d2,Bd2c4,Bc4e3][%mdl 32]} h6 {[%emt 0:01:51]} 20. Nc4 {[%emt 0:00:16]} b3 {[%emt 0:00:54]} 21. Qc3 {[%emt 0:00:36]} Ne4 {[%emt 0:01:05]} 22. Qf3 {[%emt 0:00:52]} f5 $1 {[%emt 0:00:21]} 23. h4 {[%emt 0:00:48]} b5 {[%emt 0:00:22]} 24. Qxb3 {[%emt 0:00:34]} (24. axb5 Rxa1 25. Rxa1 Qxb5 $17) 24... Qa7 {[%emt 0:00:10]} 25. Ne3 {[%emt 0:00:06]} (25. Qxb5 $2 {is a self mate.} Qxf2+ 26. Kh1 Nxg3#) 25... bxa4 {[%emt 0:00:08]} (25... Qf7 $11 {remains equal.}) 26. Qxe6+ $16 {[%emt 0:00:05]} Kh8 {[%emt 0:00:12][%cal Oe4g3]} 27. Rd7 {[%emt 0:00:14]} (27. Nxf5 $2 {loses.} Qxf2+ 28. Kh1 Qf3+ 29. Kh2 Qe2+ 30. Kg1 Qf2+ 31. Kh1 Rxf5 $19) 27... Qa6 {[%emt 0:00:12] [#]} (27... Qc5 $16) 28. Qxa6 $1 $18 {[%emt 0:00:58]} ({Weaker is} 28. Qe7 Rg8 $16) 28... Rxa6 {[%emt 0:00:01]} 29. Rd4 {[%emt 0:00:13] Prevents f4.} Nc5 {[%emt 0:00:12]} 30. Rc4 {[%emt 0:00:08]} Nd3 {[%emt 0:00:15]} 31. Rcxa4 {[%emt 0:00:13]} Rxa4 {[%emt 0:00:12]} 32. Rxa4 {[%emt 0:00:02] Hoping for f4.} Nxe5 {[%emt 0:00:02]} 33. Ra5 {[%emt 0:00:57]} Nd3 {[%emt 0:00:09]} 34. Nxf5 {[%emt 0:00:15][%mdl 32768] Weighted Error Value: White=0.05 (flawless) /Black=0.20 (precise) . Loss on time!?} 0-1

[Event "4th Tata Steel India Rapid Women 2022"]
[Site "Kolkota"]
[Date "2022.11.30"]
[Round "4.3"]
[White "Muzychuk, Anna"]
[Black "Vaishali, Rameshbabu"]
[Result "0-1"]
[ECO "C70"]
[WhiteElo "2525"]
[BlackElo "2454"]
[Annotator "TA"]
[PlyCount "150"]
[EventDate "2022.11.29"]
[EventType "tourn"]
[EventCountry "IND"]
[SourceTitle "playchess.com"]
[Source "ChessBase"]
[SourceQuality "1"]
[TimeControl "900+10"]

{[%evp 9,150,32,42,37,37,38,33,33,38,43,35,39,34,23,29,42,28,49,34,31,29,28,42,28,35,27,60,51,67,52,108,112,106,6,9,11,12,12,12,12,5,10,12,0,0,0,0,0,0,0,0,-216,-217,-220,-218,-388,-385,-434,-423,-444,-439,-445,-445,-488,-453,-513,-514,-527,-539,-599,-507,-598,-595,-591,-578,-597,-606,-591,-579,-639,-611,-625,-607,-690,-679,-722,-708,-728,-725,-725,-725,-712,-698,-657,0,-626,-556,-540,0,-633,0,-570,-533,-1014,-954,-871,-849,-1387,-1379,-1401,-1394,-1379,-1379,-1379,-1379,-1335,-777,-979,0,-1244,0,-869,-869,-1362,-1270,-1401,-1306,-2028,-1902,-1052,-1576,-1014,-1269,-1122,-1041,-1150,-992,-12822,-10915,-12837,-12831,-12839,-5819]} 1. e4 {[%emt 0:00:01]} e5 {[%emt 0:00:06]} 2. Nf3 {[%emt 0:00:06]} Nc6 {[%emt 0:00:02]} 3. Bb5 {[%emt 0:00:04]} a6 {[%emt 0:00:02]} 4. Ba4 {[%emt 0:00:01]} Bc5 {[%emt 0:00:03]} 5. c3 {[%emt 0:00:29]} Nge7 {[%emt 0:00:03]} 6. d4 {[%emt 0:00:21] C70: Ruy Lopez: 3...a6 4 Ba4, Norwegian and Delayed Schliemann.} exd4 {[%emt 0:00:03]} 7. cxd4 {[%emt 0:00:00]} Bb4+ {[%emt 0:00:03]} 8. Bd2 {[%emt 0:00:11] White is slightly better.} Bxd2+ {[%emt 0:00:06]} 9. Qxd2 {[%emt 0:00:05]} d5 {[%emt 0:00:05]} 10. exd5 {[%emt 0:00:17]} Qxd5 {[%emt 0:03:49]} 11. Nc3 {[%emt 0:01:06]} Qe6+ {[%emt 0:00:17]} 12. Qe3 {[%emt 0:00:11]} O-O {[%emt 0:05:23]} 13. O-O {[%emt 0:00:05] [#]} b5 $146 {[%emt 0:01:55]} ({Predecessor:} 13... Qd6 14. Bxc6 Nxc6 15. d5 Ne7 16. Rad1 Bg4 17. h3 Bh5 18. g4 Bg6 19. Rfe1 Rae8 {½-½ (60) Sadhwani,R (2619)-Erigaisi,A (2681) chess24.com INT 2022}) 14. Bb3 {[%emt 0:00:09]} Qxe3 {[%emt 0:00:07]} 15. fxe3 {[%emt 0:00:01]} Na5 $1 {[%emt 0:00:02]} 16. Nd2 {[%emt 0:04:19]} Bb7 {[%emt 0:01:08] Inhibits Nd5.} 17. Rac1 {[%emt 0:01:39]} Rac8 {[%emt 0:02:05]} 18. Bd1 {[%emt 0:01:38]} c5 {[%emt 0:01:58] Inhibits b4.} 19. dxc5 $1 {[%emt 0:01:14]} Rxc5 {[%emt 0:00:04]} (19... Rfd8 $1 $14 20. Nce4 Nd5) 20. b4 $16 {[%emt 0:00:03][%csl LRa5,LRc5]} Rg5 {[%emt 0:00:07]} 21. Bf3 {[%emt 0:00:42]} (21. bxa5 $2 {is the wrong capture.} Rxg2+ 22. Kh1 Rxd2+ 23. e4 Nc6 $19) (21. Nce4 $16 Bxe4 22. Nxe4 (22. bxa5 $2 {too greedy.} Rxg2+ 23. Kh1 Rxd2+ $19)) 21... Nac6 $1 $11 {[%emt 0:00:20]} 22. a3 {[%emt 0:04:54]} Rg6 {[%emt 0:00:12]} 23. Nb3 {[%emt 0:00:18]} Bc8 {[%emt 0:00:31]} 24. Nd5 {[%emt 0:00:08]} Nxd5 {[%emt 0:00:16]} 25. Bxd5 {[%emt 0:00:01]} Ne5 {[%emt 0:00:01]} 26. Rc7 {[%emt 0:00:31]} Be6 {[%emt 0:00:11]} 27. Bxe6 {[%emt 0:00:07]} Rxe6 {[%emt 0:00:09]} 28. Nc5 {[%emt 0:00:09]} Rd6 {[%emt 0:00:08]} 29. Re7 {[%emt 0:00:28]} f6 {[%emt 0:00:27]} 30. Ne6 $2 {[%emt 0:00:14] [#] White is on the road to losing.} (30. Ra7 $11) 30... Nc6 $1 $19 {[%emt 0:00:06]} 31. Rxg7+ {[%emt 0:00:15]} Kh8 {[%emt 0:00:01]} 32. Rd7 $2 {[%emt 0:00:27]} (32. Rb7 Rxe6 33. Rb6) 32... Rxe6 {[%emt 0:00:07]} ({Stronger than} 32... Rxd7 33. Nxf8 Rd6 34. Rc1 $11) 33. Rc1 {[%emt 0:00:04]} Ne5 {[%emt 0:00:05]} 34. Ra7 {[%emt 0:00:05]} Rf7 {[%emt 0:00:18]} 35. Ra8+ {[%emt 0:00:05]} Kg7 {[%emt 0:00:02]} 36. Rcc8 {[%emt 0:00:01]} Nc4 {[%emt 0:00:03]} 37. Rg8+ {[%emt 0:00:04]} Kh6 {[%emt 0:00:01]} 38. e4 {[%emt 0:00:29]} Rg7 {[%emt 0:00:06]} 39. Rge8 {[%emt 0:00:10]} Rd6 {[%emt 0:00:08] [#] ( -> ...Rd1+)} 40. Rad8 {[%emt 0:00:19]} Rgd7 {[%emt 0:00:21]} 41. Rxd7 {[%emt 0:00:06]} Rxd7 {[%emt 0:00:01][%mdl 4096] Endgame KRN-KR} 42. Kf2 {[%emt 0:00:17]} Rd6 {[%emt 0:00:08]} 43. Kf3 {[%emt 0:00:05]} Nxa3 {[%emt 0:00:07]} 44. Kf4 {[%emt 0:00:01]} Nc4 {[%emt 0:00:05]} 45. g4 {[%emt 0:00:12]} Kg6 {[%emt 0:00:11]} 46. h4 {[%emt 0:00:04]} Ne5 {[%emt 0:00:12] And now ...Rd3 would win.} 47. h5+ {[%emt 0:00:05]} Kg7 {[%emt 0:00:06]} 48. Re7+ {[%emt 0:00:10]} Nf7 {[%emt 0:00:22]} 49. Kf5 {[%emt 0:00:04]} h6 {[%emt 0:00:04]} 50. Ra7 {[%emt 0:00:06]} Rc6 {[%emt 0:00:21]} 51. Rb7 {[%emt 0:00:02]} Rd6 {[%emt 0:00:45]} 52. Ra7 {[%emt 0:00:00]} Rb6 {[%emt 0:00:01]} 53. Rc7 {[%emt 0:00:00]} Rd6 {[%emt 0:00:02]} 54. Ra7 {[%emt 0:00:13]} Rc6 {[%emt 0:00:07]} 55. Rb7 $1 {[%emt 0:00:05]} Rc4 {[%emt 0:00:22]} 56. Ra7 {[%emt 0:00:14]} Rxb4 {[%emt 0:00:09]} 57. Rxa6 {[%emt 0:00:01]} Rb1 {[%emt 0:00:12]} 58. Ra7 {[%emt 0:00:03]} Rc1 {[%emt 0:00:10]} 59. Rb7 {[%emt 0:00:11]} Rc6 {[%emt 0:00:10]} 60. Kf4 {[%emt 0:00:08]} Rc5 {[%emt 0:00:06]} 61. Rb6 {[%emt 0:00:08]} Re5 {[%emt 0:00:15]} 62. Rb7 {[%emt 0:00:17]} Re6 {[%emt 0:00:17]} 63. Kf5 {[%emt 0:00:14]} Re5+ {[%emt 0:00:09]} 64. Kf4 {[%emt 0:00:01]} Rc5 {[%emt 0:00:02] Hoping for ...Kf8.} 65. Rb6 {[%emt 0:00:08]} Rg5 {[%emt 0:00:07] Strongly threatening ...Ne5. Black is clearly winning.} 66. Rb7 {[%emt 0:00:12]} Kf8 {[%emt 0:00:04]} 67. Rb8+ {[%emt 0:00:48]} Ke7 {[%emt 0:00:01] ...Nd6 is the strong threat.} 68. Rb7+ {[%emt 0:00:01]} Ke6 {[%emt 0:00:02]} 69. Rb8 {[%emt 0:00:14]} Ne5 {[%emt 0:00:36]} 70. Rb6+ {[%emt 0:00:02]} Ke7 {[%emt 0:00:08]} 71. Rb7+ {[%emt 0:00:04]} Nd7 {[%emt 0:00:07] aiming for ...Kd6.} 72. Ra7 {[%emt 0:00:02]} Rg8 {[%emt 0:00:11] White must now prevent ...b4.} 73. Kf5 {[%emt 0:00:08]} b4 {[%emt 0:00:05]} 74. Ra6 {[%emt 0:00:30]} Rg5+ {[%emt 0:00:09]} 75. Kf4 {[%emt 0:00:02]} Rb5 {[%emt 0:00:02] Weighted Error Value: White=0.32/Black=0.07 (flawless)} 0-1

[Event "4th Tata Steel India Rapid Women 2022"]
[Site "Kolkota"]
[Date "2022.11.30"]
[Round "4.4"]
[White "Muzychuk, Mariya"]
[Black "Savitha Shri B"]
[Result "1/2-1/2"]
[ECO "B48"]
[WhiteElo "2528"]
[BlackElo "2411"]
[Annotator "TA"]
[PlyCount "131"]
[EventDate "2022.11.29"]
[EventType "tourn"]
[EventCountry "IND"]
[SourceTitle "playchess.com"]
[Source "ChessBase"]
[SourceQuality "1"]
[TimeControl "900+10"]

{[%evp 11,131,32,52,29,43,19,28,20,46,35,46,27,22,-12,-14,-24,0,-7,0,-28,-11,-13,-11,-77,-77,-58,-68,-100,-74,-112,-55,-79,-78,-77,-50,-68,-32,-27,-13,-12,-20,-16,-6,-20,43,44,71,72,77,75,109,59,101,96,89,80,84,42,45,50,63,63,59,46,46,43,56,45,53,29,42,8,35,0,0,-6,-5,-72,-68,-133,-118,-137,-14,-8,-8,-8,-8,-8,-8,-8,-8,-8,0,0,0,0,0,0,0,-3,-2,-8,0,0,0,0,0,0,0,0,0,0,0,0,0,0,8,0,0,0,0,0]} 1. e4 {[%emt 0:00:02]} c5 {[%emt 0:00:01]} 2. Nf3 {[%emt 0:00:01]} e6 {[%emt 0:00:01]} 3. d4 {[%emt 0:00:11]} cxd4 {[%emt 0:00:02]} 4. Nxd4 {[%emt 0:00:00]} Nc6 {[%emt 0:00:01]} 5. Nc3 {[%emt 0:00:03][%cal Bb1c3,Bc3e2,Be2d4][%mdl 32]} Qc7 {[%emt 0:00:02]} 6. Be3 {[%emt 0:00:13]} a6 {[%emt 0:00:01]} 7. Qf3 {[%emt 0:00:32] B48: Sicilian: Taimanov: 5 Nc3 Qc7 6 Be3 a6 without Be2.} b5 {[%emt 0:00:08]} 8. Nxc6 {[%emt 0:03:53]} Qxc6 {[%emt 0:00:02]} 9. Bd3 {[%emt 0:00:41] White has an edge.} b4 {[%emt 0:00:02]} 10. Ne2 {[%emt 0:00:09]} Bb7 {[%emt 0:00:02]} 11. Nd4 {[%emt 0:00:56]} Qc7 {[%emt 0:00:01] [#]} 12. O-O $146 {[%emt 0:01:30][%cal Oc2c3]} ({Predecessor:} 12. Qg3 Qxg3 13. hxg3 Nf6 14. f3 Bc5 15. g4 d6 16. g5 Nd7 17. Kd2 Ke7 18. Rh4 {½-½ (57) Ibadov,D (2285)-Frolyanov,D (2536) Kazan 2021}) 12... Nf6 {[%emt 0:00:02]} 13. Rfe1 {[%emt 0:01:18]} Be7 {[%emt 0:01:47]} (13... Bd6 $5 {[%cal Rd6h2]}) 14. Bf4 {[%emt 0:00:16]} d6 {[%emt 0:00:59]} 15. Bg3 {[%emt 0:00:07]} Qb6 {[%emt 0:00:49]} 16. Nb3 {[%emt 0:00:22]} a5 {[%emt 0:00:46]} 17. Qe3 {[%emt 0:01:12]} (17. a4 $11) 17... Qxe3 $17 {[%emt 0:00:31]} 18. Rxe3 {[%emt 0:00:00]} O-O {[%emt 0:00:27]} 19. Rd1 {[%emt 0:01:21]} d5 {[%emt 0:01:33]} 20. e5 {[%emt 0:00:07]} Nd7 {[%emt 0:01:17]} (20... Ne4 $17 21. Nd4 a4) 21. Bb5 {[%emt 0:00:04]} Nb6 {[%emt 0:00:25][%cal Bd7b6,Bb6c4,Bc4e3][%mdl 32]} 22. Nd4 {[%emt 0:00:27]} Rac8 {[%emt 0:01:46]} 23. Re2 {[%emt 0:00:16]} Bc5 {[%emt 0:01:25]} (23... Nc4 $5 {[%cal Rc4b2]} 24. Rb1 Bc5 $15) 24. Nb3 {[%emt 0:01:04]} a4 {[%emt 0:00:17]} (24... Rc7 $5) 25. Nxc5 {[%emt 0:00:02]} Rxc5 {[%emt 0:00:02]} 26. Bd3 {[%emt 0:00:01]} Nc4 {[%emt 0:01:05]} 27. Rb1 {[%emt 0:00:10]} d4 {[%emt 0:01:21]} (27... Ba6 $11) 28. f4 $14 {[%emt 0:01:17]} Rd8 {[%emt 0:01:26]} 29. Be1 {[%emt 0:00:31]} Ne3 {[%emt 0:01:22]} 30. Bxb4 {[%emt 0:00:05]} Rcc8 {[%emt 0:00:01]} 31. Bd6 {[%emt 0:00:50] A strong pair of Bishops.} (31. b3 $16) 31... Nc4 {[%emt 0:01:18]} 32. Bxc4 {[%emt 0:01:21]} Rxc4 {[%emt 0:00:01]} 33. b3 {[%emt 0:00:03]} axb3 {[%emt 0:00:03]} 34. axb3 {[%emt 0:00:06]} (34. Rxb3 Bd5 $11) 34... Rc3 {[%emt 0:00:08]} 35. Bb4 {[%emt 0:00:27]} Rc6 {[%emt 0:00:04]} 36. Rd1 {[%emt 0:00:12]} Rd5 $1 {[%emt 0:00:25]} 37. Red2 {[%emt 0:00:21]} h6 {[%emt 0:00:11]} 38. Bd6 {[%emt 0:00:32]} Kh7 {[%emt 0:00:46]} 39. b4 {[%emt 0:00:01]} ({But not} 39. Rxd4 Rxc2 40. g3 Rg2+ $1 41. Kf1 Rxh2 $17) 39... Rc4 {[%emt 0:00:01]} 40. Bc5 {[%emt 0:00:05]} Kg6 {[%emt 0:00:09]} 41. g4 {[%emt 0:00:28]} h5 {[%emt 0:00:12]} 42. h3 {[%emt 0:00:04]} hxg4 {[%emt 0:00:00]} 43. hxg4 {[%emt 0:00:01][%cal Rc5d4]} d3 {[%emt 0:00:17]} 44. cxd3 {[%emt 0:00:16]} (44. Rxd3 $11 {remains equal.} Rxc2 45. Rxd5 (45. f5+ Kg5 $11) 45... Bxd5 46. Bf2 (46. f5+ Kg5 $11)) 44... Rxf4 $17 {[%emt 0:00:02]} 45. d4 {[%emt 0:00:20]} ({White should try} 45. Rg2 $15) 45... Rxg4+ {[%emt 0:00:05]} 46. Kf2 {[%emt 0:00:01] [#]} Rd8 {[%emt 0:00:20]} ({Black should play} 46... f5 $1 $17 {Strongly threatening ...Rd8.} 47. Rg1 Rxg1 48. Kxg1 Rd8) 47. Rg1 $1 $11 {[%emt 0:00:27] The position is equal.} Rxg1 {[%emt 0:00:08]} 48. Kxg1 {[%emt 0:00:01][%mdl 4096] Endgame KRB-KRB} f6 {[%emt 0:00:17]} 49. exf6 {[%emt 0:00:21]} gxf6 {[%emt 0:00:03]} 50. Re2 {[%emt 0:00:22]} Bd5 {[%emt 0:00:02]} 51. b5 {[%emt 0:00:05]} Rh8 {[%emt 0:00:31]} 52. Rh2 {[%emt 0:00:09]} Ra8 {[%emt 0:00:08]} 53. b6 {[%emt 0:00:04]} Ra1+ {[%emt 0:00:09]} 54. Kf2 {[%emt 0:00:01]} Kf5 {[%emt 0:00:17]} 55. Rh7 {[%emt 0:00:07]} Rb1 {[%emt 0:00:08]} 56. Rh6 {[%emt 0:00:25]} e5 {[%emt 0:00:36]} 57. dxe5 {[%emt 0:00:07]} fxe5 {[%emt 0:00:01]} 58. Rh5+ {[%emt 0:00:19]} Ke4 {[%emt 0:00:08]} 59. Rh4+ {[%emt 0:00:11]} Kd3 {[%emt 0:00:05]} 60. Rb4 {[%emt 0:00:20]} Rc1 {[%emt 0:00:24]} 61. Bd6 {[%emt 0:00:05]} e4 {[%emt 0:00:16] ( -> ...e3+)} 62. Bf4 {[%emt 0:00:09] Inhibits e3+.} Rc2+ {[%emt 0:00:02]} 63. Kg3 {[%emt 0:00:03]} e3 {[%emt 0:00:10]} 64. Bxe3 {[%emt 0:00:06]} Kxe3 {[%emt 0:00:04]} 65. b7 {[%emt 0:00:01]} Bxb7 {[%emt 0:00:09]} 66. Rxb7 {[%emt 0:00:02] Weighted Error Value: White=0.14 (very precise) /Black=0.13 (very precise)} 1/2-1/2